[Event "Live Chess"]
[Site "Chess.com"]
[Date "2021.09.03"]
[Round "1"]
[White "Greatboomer"]
[Black "fiddleleaf"]
[Result "0-1"]
[CurrentPosition "r4k2/pp3p2/3bp3/3p3p/6rP/1P4P1/P1P1qP2/5RK1 w - -"]
[Timezone "UTC"]
[ECO "B12"]
[ECOUrl "https://www.chess.com/openings/Caro-Kann-Defense-Advance-Tal-Variation"]
[UTCDate "2021.09.03"]
[UTCTime "01:32:40"]
[WhiteElo "889"]
[BlackElo "1574"]
[TimeControl "2100+5"]
[Termination "fiddleleaf won by resignation"]
[StartTime "01:32:40"]
[EndDate "2021.09.03"]
[EndTime "02:04:28"]
[Link "https://www.chess.com/game/live/24371513781"]

1. e4 {[%clk 0:34:56.3]} 1... c6 {[%clk 0:35:02.8]} 2. d4 {[%clk 0:34:58.7]} 2... d5 {[%clk 0:35:06.8]} 3. e5 {[%clk 0:35:01.5]} 3... Bf5 {[%clk 0:35:10.2]} 4. h4 {[%clk 0:35:05.1]} 4... h5 {[%clk 0:35:13.9]} 5. Bd3 {[%clk 0:35:08.6]} 5... Bxd3 {[%clk 0:35:17.1]} 6. Qxd3 {[%clk 0:35:11.3]} 6... Qa5+ {[%clk 0:35:02.8]} 7. Nc3 {[%clk 0:35:05.5]} 7... e6 {[%clk 0:34:19.9]} 8. Ne2 {[%clk 0:35:07.1]} 8... c5 {[%clk 0:33:02.2]} 9. b3 {[%clk 0:32:24.9]} 9... Nc6 {[%clk 0:32:20.2]} 10. O-O {[%clk 0:30:07.6]} 10... cxd4 {[%clk 0:31:16.5]} 11. Nxd4 {[%clk 0:30:05.5]} 11... Nxe5 {[%clk 0:29:58.1]} 12. Qe4 {[%clk 0:30:02.4]} 12... Qxc3 {[%clk 0:28:24.8]} 13. Qxe5 {[%clk 0:29:38.9]} 13... Qxa1 {[%clk 0:25:48.7]} 14. Be3 {[%clk 0:29:32.7]} 14... Qc3 {[%clk 0:24:45.2]} 15. Bg5 {[%clk 0:28:19.8]} 15... Nf6 {[%clk 0:22:57.7]} 16. Bxf6 {[%clk 0:28:05.9]} 16... gxf6 {[%clk 0:22:58.5]} 17. Qxf6 {[%clk 0:28:09.1]} 17... Rg8 {[%clk 0:21:50.9]} 18. Qf4 {[%clk 0:27:27.4]} 18... Rg4 {[%clk 0:20:36.9]} 19. Qe3 {[%clk 0:26:17.7]} 19... Qxd4 {[%clk 0:20:22.7]} 20. Qe2 {[%clk 0:26:07.8]} 20... Bd6 {[%clk 0:20:01.7]} 21. Qb5+ {[%clk 0:25:26]} 21... Kf8 {[%clk 0:19:19.4]} 22. Qe2 {[%clk 0:24:12.2]} 22... Qe5 {[%clk 0:18:28.2]} 23. g3 {[%clk 0:24:04.8]} 23... Qxe2 {[%clk 0:18:27.1]} 0-1